Cogmind - Beta 17 @@@ ROGUE MODE // 2026.07.21 @ 01:47:37 Player: Artackni Result: Destroyed self with Heavy Rocket Launcher Performance ------------- Evolutions (3) 1500 Regions Visited (4) 800 Robots Destroyed (76) 380 Value Destroyed (2076) 2076 Prototype IDs (22) 440 Alien Tech Used (0) 0 Bonus (6816) 6816 TOTAL SCORE: 12012 Bonus ------- High Alert Combat Kills 218 Follower Combat Kills 398 Prayed to X0-1V1 5000 Major X0-1V1 Interference 1200 Cogmind --------- Core Integrity 0/630 Matter 262/300 Energy 1073/1100 System Corruption 0% Temperature Cool (0) Movement Core (550) Ox10 Location -7/Factory Parts ------- > --- POWER (1) -------- (None) > --- PROPULSION (5) --- (None) > --- UTILITY (5) ------ Large Storage Unit Improved Melee Analysis Suite Self-contained Transmogrifier > --- WEAPON (3) ------- Heavy Rocket Launcher Powered Hammer (fused) Impact Mace (fused) > --- INVENTORY (15) --- Improved Ion Engine Active Sensor Suite Improved Melee Analysis Suite Makeshift Light Armor Plating Heavy Particle Gun Subdweller Beam Cannon Heavy Rocket Launcher Plasma Cutter Ripper Peak State ------------ > --- POWER ------------ Enhanced Nuclear Core > --- PROPULSION ------- Advanced Treads Medium Treads Medium Treads Medium Treads Spiked Medium Treads > --- UTILITY ---------- Large Storage Unit Seismic Detector Improved Melee Analysis Suite Self-contained Transmogrifier X0-1V1's Piety Tracker > --- WEAPON ----------- Powered Hammer Impact Mace Ripper > --- INVENTORY -------- Improved Ion Engine Advanced Treads Active Sensor Suite Improved Melee Analysis Suite Makeshift Light Armor Plating Tower Shield Heavy Particle Gun Subdweller Beam Cannon Heavy Rocket Launcher Heavy Rocket Launcher Plasma Cutter [Rating: 73] Favorites ----------- Power Improved Ion Engine Engine Improved Ion Engine Power Core Enhanced Nuclear Core Propulsion Light Treads Treads Light Treads Leg Carbon-fiber Leg Hover Unit Cooled Airjet Utility Large Storage Unit Device Self-contained Transmogrifier Storage Large Storage Unit Processor Improved Melee Analysis Suite Protection Tower Shield Weapon Small Laser Energy Gun Small Laser Energy Cannon Subdweller Beam Cannon Ballistic Gun Barrage Gun Ballistic Cannon Assault Cannon Launcher Heavy Rocket Launcher Impact Weapon Powered Hammer Slashing Weapon Ripper Build | -11 -10 -10 -8 -7 ------- Run | Yrd Mat Sub Mat Fac Slots Evolved 6 | . . . 4 2 Power . | . . . . . Propulsion 2 | . . . 1 1 Utility 3 | . . . 2 1 Weapon 1 | . . . 1 . Parts Attached 50 | 7 5 8 21 9 Power 2 | 1 1 . . . Engine 2 | 1 1 . . . Core . | . . . . . Reactor . | . . . . . Propulsion 16 | 2 . 2 6 6 Treads 15 | 2 . 2 5 6 Leg 1 | . . . 1 . Wheel . | . . . . . Hover . | . . . . . Flight . | . . . . . Utility 11 | 2 1 2 4 2 Device 5 | 1 . 2 1 1 Storage 2 | 1 1 . . . Processor 3 | . . . 3 . Hackware . | . . . . . Protection 1 | . . . . 1 Artifact . | . . . . . Weapon 21 | 2 3 4 11 1 Energy Gun 5 | 2 1 . 2 . Energy Cannon 3 | . . 2 1 . Ballistic Gun 6 | . 2 2 2 . Ballistic Cannon 2 | . . . 2 . Launcher 2 | . . . 1 1 Special Weapon . | . . . . . Impact Weapon 1 | . . . 1 . Slashing Weapon 2 | . . . 2 . Piercing Weapon . | . . . . . Special Melee Weapon . | . . . . . Unidentified Prototypes 4 | . . 2 2 . Parts Lost 15 | . . . 4 11 Power 1 | . . . . 1 Propulsion 9 | . . . 2 7 Utility 3 | . . . . 3 Weapon 2 | . . . 2 . Highest Loss Streak 6 | . . . 2 6 To Critical Strikes . | . . . . . Average Backups 11 | 1 9 14 12 10 Power 1 | . 1 2 1 1 Propulsion 1 | . 3 2 . . Utility 3 | . 1 3 4 4 Weapon 4 | . 2 5 5 4 Tool/Special . | . . . . . Unused Backups 20 | . 2 7 5 6 Power 3 | . 1 . 1 1 Propulsion 2 | . . 2 . . Utility 6 | . . 1 2 3 Weapon 8 | . 1 4 2 1 Tool/Special 1 | . . . . 1 Average Slot Usage (%) 97 | . 100 99 97 88 Engine 7 | . 14 12 . . Core 3 | . . . 8 5 Treads 29 | . 28 31 27 30 Leg 1 | . . . 3 . Device 14 | . 14 13 15 16 Storage 11 | . 14 13 8 6 Processor 3 | . . . 7 6 Energy Gun 7 | . 27 . . . Energy Cannon 7 | . . 18 4 . Ballistic Gun 3 | . . 7 2 . Impact Weapon 3 | . . . 7 13 Slashing Weapon 2 | . . . 7 6 Peak Build Rating 73 | 7 9 30 65 73 Average Rating 33 | 6 8 23 57 67 On Entrance 22 | . 7 9 30 65 Avg Prop Armor Cover (%) 6 | . . . 6 5 Naked Turns . | . . . . . Heaviest Build 67 | 11 32 44 45 67 Greatest Support 134 | 40 40 69 89 134 Greatest Overweight (x) 2 | . . 1 2 . Average Overweight (x) . | . . . . . Largest Inventory Capacity 15 | 8 15 15 15 15 Average Capacity 14 | 7 13 15 15 15 Most Carried 15 | 4 15 15 15 15 Average Carried 12 | 1 9 14 14 13 Final Capacity 15 | 8 15 15 15 15 Final Carried 15 | 4 15 15 15 11 Transmogrified Parts 22 | . . 7 10 5 Integrity Recovered 338 | . . 88 86 164 Class Distribution -------------------- 63% | Mutant 27% | Gladiator 4% | Gunner 4% | Commander-Gunner Dominant Class ---------------- Mutant | -10/Materials Mutant | -10/Subcaves Gladiator | -8/Materials Gladiator | -7/Factory Resources | -11 -10 -10 -8 -7 ----------- Run | Yrd Mat Sub Mat Fac Matter Collected 1397 | 266 54 295 712 70 Remotely . | . . . . . Salvage Created 2733 | 206 307 362 1251 607 Parts 146 | 22 21 24 53 26 Haulers Intercepted 4 | . 2 . 2 . Recyclers Shooed 1 | . . . . 1 Parts Field Recycled . | . . . . . Retrieved Matter . | . . . . . Parts Self-Destructed 16 | . . 16 . . Prevented . | . . . . . Parts Restored . | . . . . . Kills | -11 -10 -10 -8 -7 ------- Run | Yrd Mat Sub Mat Fac Combat Hostiles Destroyed 56 | . 10 9 26 11 Melee 21 | . . . 12 9 Guns 18 | . 10 2 6 . Cannons 11 | . . 6 5 . AOE 4 | . . . 2 2 Classes Destroyed 13 | 3 3 1 6 . Worker 6 | 2 1 . 3 . Builder 2 | . . . 2 . Tunneler 5 | 5 . . . . Hauler 4 | . 2 . 2 . Recycler 3 | 1 . . . 2 Swarmer 18 | . 8 1 7 2 Grunt 19 | . 2 . 10 7 Brawler 4 | . . . 3 1 Duelist 1 | . . . 1 . Sentry 3 | . . . 2 1 Hunter 2 | . . . 2 . Heavy 1 | . . . 1 . Subdweller 8 | . . 8 . . Best Kill Streak 7 | 4 3 2 7 3 Combat Bots Only 5 | . 3 2 5 3 Max Kills in Single Turn 2 | 1 1 1 2 2 Gunslinging . | . . . . . Exploded 2 | . . . 2 2 Melee 1 | . . . 1 1 Uniques/NPCs Destroyed . | . . . . . Combat | -11 -10 -10 -8 -7 -------- Run | Yrd Mat Sub Mat Fac Hostile Shots Fired 393 | . 44 23 114 212 Missed 108 | . 15 10 25 58 Hits 285 | . 29 13 89 154 Melee 2 | . . . . 2 Projectile 283 | . 29 13 89 152 AOE 3 | . . . . 3 Critical Strikes 10 | . . . 6 4 Damage Taken 4244 | . 239 240 1340 2425 Core 888 | . 46 46 152 644 Absorbed by Shields . | . . . . . Core Remaining (%) 77 | 100 . 63 68 . Volleys Fired 117 | 17 42 23 33 2 Largest 3 | 2 2 2 3 1 Hottest 171 | 80 80 160 171 39 Shots Fired 246 | 34 84 41 85 2 Gun 170 | 34 84 15 37 . Cannon 73 | . . 26 47 . Launcher 3 | . . . 1 2 Special . | . . . . . Kinetic 55 | . . 15 40 . Thermal 187 | 34 84 26 43 . Explosive 3 | . . . 1 2 Electromagnetic 1 | . . . 1 . Robot Hit Streak 12 | 4 8 12 8 . Robot Miss Streak 3 | 2 3 1 3 2 Penetration Max . | . . . . . Secondary Targets 2 | . 2 . . . Max Gunslinging Chain 1 | . 1 . . . Shots Hit Robots 217 | 18 51 25 83 40 Core Hits 89 | 9 18 9 35 18 Critical Kills 2 | . . 1 1 . Critical Parts Destroyed 1 | . . . . 1 Critical Strikes 9 | . . 1 5 3 Meltdown 1 | . . 1 . . Destroy 1 | . . . 1 . Smash 1 | . . . . 1 Sever 6 | . . . 4 2 Melee Attacks 105 | . . . 53 52 Impact 33 | . . . 13 20 Slashing 72 | . . . 40 32 Piercing . | . . . . . Sneak Attacks 9 | . . . 6 3 Combat Hostiles 1 | . . . . 1 Follow-up Attacks 18 | . . . 13 5 Damage Inflicted 5348 | 199 572 427 2628 1522 Guns 1210 | 199 553 77 381 . Cannons 965 | . . 350 615 . Explosions 192 | . . . 109 83 Melee 2962 | . . . 1523 1439 Ramming 19 | . 19 . . . Kinetic 482 | . . 77 405 . Thermal 1693 | 199 553 350 591 . Explosive 192 | . . . 109 83 Electromagnetic . | . . . . . Impact 738 | . . . 405 333 Slashing 2224 | . . . 1118 1106 Piercing . | . . . . . Highest Corruption . | . . . . . Average Corruption . | . . . . . Corruption Purged . | . . . . . Corruption Blocked . | . . . . . Overload Shots . | . . . . . Overflow Damage 247 | . . 16 128 103 Projectiles 23 | . . 16 7 . Explosions . | . . . . . Melee 224 | . . . 121 103 Knockbacks 1 | . . . 1 . Impact . | . . . . . Kinetic 1 | . . . 1 . Secondary . | . . . . . Self-Inflicted Damage 49 | . . . . 49 Shots 1 | . . . . 1 Rammed 2 | . 2 . . . Targets Rammed 2 | . 2 . . . Kicked . | . . . . . Crushed . | . . . . . Highest Temperature 327 | 108 168 168 327 17 Average Temperature 81 | 36 55 40 130 9 Received Heat Transfer 984 | . 18 39 387 540 Effects 1 | . . . 1 . Energy Bleed 1 | . . . 1 . Siege Activations . | . . . . . Martial Activations . | . . . . . Shielding Activations . | . . . . . Robots Disrupted . | . . . . . Combat Hostiles . | . . . . . Robots Corrupted 2 | . . . 2 . Combat Hostiles 1 | . . . 1 . Parts Fried 2 | . . . 2 . Impact Corruptions 6 | . . . 4 2 Robots Melted 1 | . . 1 . . Combat Hostiles 1 | . . 1 . . Parts Melted 8 | . 2 3 1 2 Heat Transferred 3118 | 450 1225 481 962 . Parts Sabotaged . | . . . . . Parts Stolen . | . . . . . Parts Stripped . | . . . . . Power Chain Reactions . | . . . . . Alert | -11 -10 -10 -8 -7 ------- Run | Yrd Mat Sub Mat Fac Maximum Alert Level 3 | . . . 3 1 Low Security (%) 64 | 100 100 . 20 77 Level 1 6 | . . . 7 22 Level 2 17 | . . . 44 . Level 3 11 | . . . 27 . Level 4 . | . . . . . Level 5 . | . . . . . High Security . | . . . . . Max Security . | . . . . . Peak Influence 793 | 15 129 . 793 315 Initial 315 | . . . . 315 Average 246 | 2 32 . 521 144 Influence Increases 2217 | 40 318 65 1427 367 Destroy 0b10 Robot/C 1280 | . 200 60 800 220 Destroy 0b10 Robot/NC 110 | 40 15 . 45 10 Destroy Leader 260 | . 44 . 166 50 Allied During Kill 84 | . . 5 79 . Successful Hack 54 | . 14 . 10 30 Disable Machine 120 | . . . 120 . Destroy Structure 189 | . . . 177 12 Lose Combat Pursuer 120 | . 45 . 30 45 Influence Decreases 2049 | 40 318 65 734 892 Entered New Map 378 | . . . . 378 Time Decay 1101 | 40 318 25 464 254 Lost Part 150 | . . . 40 110 Lost Ally 120 | . . 40 80 . Purge Threat 300 | . . . 150 150 Squads Dispatched 12 | . 2 . 6 4 Investigation 5 | . 1 . 2 2 Extermination 1 | . . . . 1 Reinforcement 5 | . 1 . 4 . Assault . | . . . . . Garrison 1 | . . . . 1 Intercept . | . . . . . Searches Triggered . | . . . . . Construction Impeded 1 | . . . 1 . Haulers Reinforced . | . . . . . Active Scanning Responses . | . . . . . Cargo Convoy Interrupts . | . . . . . Stealth | -11 -10 -10 -8 -7 --------- Run | Yrd Mat Sub Mat Fac Distress Signals 6 | . 2 . 4 . Communications Jammed . | . . . . . Distress Signals . | . . . . . Times Spotted 88 | . 21 11 39 17 Peak Tracking Total 6 | . 6 3 5 5 Tactical Retreats 6 | . 1 . 2 3 Traps | -11 -10 -10 -8 -7 ------- Run | Yrd Mat Sub Mat Fac Traps Triggered . | . . . . . Indirectly . | . . . . . Trap Hack Attempts . | . . . . . Triggered . | . . . . . Disarmed . | . . . . . Reprogrammed . | . . . . . Reused . | . . . . . Traps Extracted . | . . . . . Installed . | . . . . . Triggered . | . . . . . Machines | -11 -10 -10 -8 -7 ---------- Run | Yrd Mat Sub Mat Fac Machines Disabled 9 | . . 1 8 . Max in Single Turn 1 | . . 1 1 . Machines Repaired . | . . . . . Machines Dismantled . | . . . . . Machines Sabotaged . | . . . . . Overloaded Fab Kills . | . . . . . Hacking | -11 -10 -10 -8 -7 --------- Run | Yrd Mat Sub Mat Fac Machines Accessed 14 | . 5 1 3 5 Terminals 10 | . 5 . 2 3 Fabricators . | . . . . . Repair Stations . | . . . . . Recycling Units . | . . . . . Scanalyzers 2 | . . . 1 1 Garrison Access 1 | . . . . 1 Total Hacks 40 | . 14 1 8 17 Successful 18 | . 6 1 3 8 Failed 22 | . 8 . 5 9 Catastrophic 5 | . 1 . 2 2 Database Lockouts . | . . . . . Manual 28 | . 15 . 6 7 Terminals 31 | . 14 . 6 11 Fabricators . | . . . . . Repair Stations . | . . . . . Recycling Units . | . . . . . Scanalyzers 6 | . . . 2 4 Garrison Access 2 | . . . . 2 Terminal Hacks 7 | . . 1 2 4 Branch Access Points 1 | . . . 1 . Alert Level 1 | . . . . 1 Unreport Threat 2 | . . . 1 1 Dispatch Records 1 | . . . . 1 Registered Components 1 | . . . . 1 Proto ID Catalog 1 | . . 1 . . Fabricator Hacks . | . . . . . Repair Station Hacks . | . . . . . Recycling Unit Hacks . | . . . . . Scanalyzer 2 | . . . 1 1 Retrieve Study 2 | . . . 1 1 Garrison Access Hacks . | . . . . . Unauthorized Hacks 9 | . 6 . . 3 Terminals 9 | . 6 . . 3 Botnet 2 | . . . . 2 Operators 2 | . 1 . . 1 Skim 5 | . 5 . . . Fabricators . | . . . . . Repair Stations . | . . . . . Recycling Units . | . . . . . Scanalyzers . | . . . . . Garrison Access . | . . . . . Data Cores Recovered . | . . . . . Used . | . . . . . Hacking Detections 12 | . 4 . 3 5 Full Trace Events 3 | . . . 1 2 Feedback Events . | . . . . . Feedback Blocked . | . . . . . Robot Schematics Acquired . | . . . . . Robots Built . | . . . . . Authchips . | . . . . . Time . | . . . . . Total Robot Build Rating . | . . . . . Part Schematics Acquired . | . . . . . Parts Built . | . . . . . Authchips . | . . . . . Time . | . . . . . Total Part Build Rating . | . . . . . Part Studies Acquired 2 | . . . 1 1 Parts Repaired . | . . . . . Time . | . . . . . Parts Recycled . | . . . . . Recycled Matter . | . . . . . Retrieved Matter . | . . . . . Retrieved Components . | . . . . . Parts Scanalyzed . | . . . . . Part Schematics Acquired . | . . . . . Parts Damaged . | . . . . . Bothacking | -11 -10 -10 -8 -7 ------------ Run | Yrd Mat Sub Mat Fac Used RIF Installer . | . . . . . Robots Hacked . | . . . . . Non-combat . | . . . . . Combat . | . . . . . Robot Hacks Applied . | . . . . . Relay Couplers Released . | . . . . . Fabnet Peak Effective % . | . . . . . Robots Rewired . | . . . . . Allies Hacked . | . . . . . Hacks Repelled . | . . . . . Allies | -11 -10 -10 -8 -7 -------- Run | Yrd Mat Sub Mat Fac Total Allies 8 | . . 4 4 . Largest Group 4 | . . 4 4 . Highest-Rated Group 136 | . . 20 136 . Highest-Rated Ally 34 | . . 5 34 . Total Orders . | . . . . . Ally Attacks 53 | . . 20 33 . Total Damage 1521 | . . 79 1442 . Kills 18 | . . 2 16 . Allies Corrupted . | . . . . . Allies Melted . | . . . . . X0-1V1 Amusement Gains 118 | . 4 8 16 90 Good Acts 17 | . . 8 7 2 Bad Acts 8 | . . 3 2 3 Intel | -11 -10 -10 -8 -7 ------- Run | Yrd Mat Sub Mat Fac Active Infowar (turns) 1680 | 107 1244 23 . 306 Seismic 1680 | 107 1244 23 . 306 Robot Analysis Total . | . . . . . Derelict Logs Recovered 1 | . . 1 . . Drone Launches . | . . . . . Drone Recoveries . | . . . . . Exploration | -11 -10 -10 -8 -7 ------------- Run | Yrd Mat Sub Mat Fac Turns Passed 4861 | 209 1244 1505 1354 549 Spaces Moved 2527 | 96 679 830 669 253 Core 8 | 8 . . . . Treads 2502 | 88 679 830 652 253 Legs 17 | . . . 17 . Wheels . | . . . . . Hover . | . . . . . Flight . | . . . . . Fastest Speed 50 | 50 160 160 145 155 Average Speed 161 | 150 160 169 157 156 Slowest Speed 260 | 160 160 240 260 160 Overloaded Moves . | . . . . . Propulsion Burnouts . | . . . . . Robots Hopped . | . . . . . Potential Cave-ins . | . . . . . Cave-ins Triggered . | . . . . . Exploration Rate (%) 39 | 5 94 46 44 8 Regions Visited 4 Branch Regions 1 Pre-discovered Areas . | . . . . . Known Exits Taken 1 | . . 1 . . Unknown Exits Taken 3 | 1 1 . 1 . Scrap Searched 12 | . . 12 . . Spaces Dug 5 | . . . 4 1 Terrain Destroyed 41 | . . 4 23 14 Melee 5 | . . . 4 1 Projectile 11 | . . 4 7 . AOE 25 | . . . 12 13 Terrain Rammed . | . . . . . Walls Destroyed . | . . . . . Machines Disabled . | . . . . . Actions | -11 -10 -10 -8 -7 --------- Run | Yrd Mat Sub Mat Fac Total 2942 | 123 755 893 840 331 Wait 100 | . 9 11 57 23 Move 2523 | 95 678 829 668 253 Hop . | . . . . . Pick Up 35 | 4 14 8 9 . Fast Attach 24 | 7 . 4 9 4 Attach 11 | . . 1 7 3 Detach 8 | . . 1 6 1 Swap 16 | . 5 3 6 2 Drop 26 | . 5 13 8 . Fire 117 | 17 42 23 33 2 Melee 80 | . . . 37 43 Ram . | . . . . . Kick . | . . . . . Crush 2 | . 2 . . . Escape Stasis . | . . . . . Rewire . | . . . . . Trap . | . . . . . Miscellaneous . | . . . . . Route ------- -11/Scrapyard -10/Materials (discovered 6 exits: [*Mat x3] / [*Min x2] / *Sub) -10/Subcaves (discovered 3 exits: *Mat x2 / Rec) -8/Materials -7/Factory History --------- Turn | Location | Event 3 | -11/Scrapyard | Discovered new exit (range 16) 210 | -11/Scrapyard | Entered Materials 306 | -10/Materials | Build established: Mutant 445 | -10/Materials | Discovered new exit (range 10) 757 | -10/Materials | Discovered new exit (range 9) 777 | -10/Materials | Discovered new exit (range 14) 945 | -10/Materials | Discovered new exit (range 8) 970 | -10/Materials | Learned location of 2 exits from Subcaves 1006 | -10/Materials | Learned Storage trap positions 1010 | -10/Materials | Derelicts attacked the area 1033 | -10/Materials | Learned 4 Recycling zone layouts 1050 | -10/Materials | Learned Storage stockpile data 1057 | -10/Materials | Loaded intel: 11 trap records 1076 | -10/Materials | Learned Storage trap positions 1103 | -10/Materials | Learned location of 2 exits from Mines 1111 | -10/Materials | Discovered new exit (range 15) 1316 | -10/Materials | Discovered new exit (range 10) 1453 | -10/Materials | Prayed at D.C.S.S. Altar Unit 1454 | -10/Materials | Entered Subcaves 1455 | -10/Subcaves | Identified exit to Materials 1507 | -10/Subcaves | A swath of the cavern ceiling suddenly collapsed 1564 | -10/Subcaves | Learned Materials garrison access intel 1615 | -10/Subcaves | Disturbed a concealed Subdweller 1617 | -10/Subcaves | Disturbed a concealed Subdweller 1735 | -10/Subcaves | Shifting Twisted Machinery released Mak. Light Armor Plating 1759 | -10/Subcaves | Shifting Twisted Machinery released Sub. Beam Cannon 1765 | -10/Subcaves | X0-1V1 sent hostile S-10 Pest (x3) 1769 | -10/Subcaves | X0-1V1 sent allied S-10 Pest (x4) 1812 | -10/Subcaves | Lost 4 allies 1858 | -10/Subcaves | X0-1V1 activates XOMVISION 2076 | -10/Subcaves | Identified exit to Recycling 2076 | -10/Subcaves | X0-1V1 revealed exit location to -7/Recycling 2142 | -10/Subcaves | Visited 4L-MR0's lab 2163 | -10/Subcaves | Found Prototype Device 2163 | -10/Subcaves | Identified Sfc. Transmogrifier 2183 | -10/Subcaves | Found Tower Shield 2289 | -10/Subcaves | Propulsion slot count permanently improved by X0-1V1 (+1) 2704 | -10/Subcaves | X0-1V1 activates XOMVISION 2959 | -10/Subcaves | Entered Materials 2959 | -8/Materials | Evolved 4 slots: Propulsion x1, Utility x2, Weapon x1 2960 | -8/Materials | Loaded intel: 1 garrison access location 2980 | -8/Materials | Melee accuracy permanently improved by X0-1V1 (+7%; -70 max core) 3106 | -8/Materials | X0-1V1 sent you to a vault 3234 | -8/Materials | Discovered new exit (range 10) 3362 | -8/Materials | Lost 3 allies 3808 | -8/Materials | X0-1V1 sent hostile B-36 Bruiser (x2) 3834 | -8/Materials | Build established: Gladiator 3895 | -8/Materials | Found Corrupted Prototype Device 3913 | -8/Materials | X0-1V1 activates XOMVISION 4313 | -8/Materials | Entered Factory 4313 | -7/Factory | Evolved 2 slots: Propulsion x1, Utility x1 4758 | -7/Factory | Core integrity fell below 50% 4780 | -7/Factory | X0-1V1 sent hostile H-61 Shepherd (x1) 4781 | -7/Factory | Attached Tower Shield, gained temporary slots: Power, Propulsion x2, Utility x2, Weapon x2 4802 | -7/Factory | Lost 6 parts (1p3n2u) 4836 | -7/Factory | Garrison activated, responded to threat 4859 | -7/Factory | Core integrity fell below 20% 4862 | -7/Factory | Destroyed self with Heavy Rocket Launcher Last Messages --------------- to Factory Zone 7U. 04842_ Destroyed Cooling System. 04842_ H-61 Shepherd system corrupted by crushing effect. 04844_ K-01 Serf collects debris. 04844_ Tower Shield destroyed. 04845_ Temporary Power slot lost. 04845_ Temporary Propulsion slot lost. 04845_ Temporary Utility slot lost. 04845_ Temporary Weapon slot lost. 04847_ X0-1V1 feels inspired! S-27 Virus Autogun replaced by Hpw. Shotgun. S-27 Virus Autogun replaced by Minigun. 04847_ K-01 Serf collects debris. 04851_ Med. Treads destroyed. 04853_ Lgt. Treads destroyed. 04853_ Spk. Medium Treads destroyed. 04854_ Lgt. Treads destroyed. 04859_ Knocked back. 04860_ S-27 Virus destroyed. 04862_ X0-1V1 guffaws! Map ----- +----------------------------------------------------+ | ?????????????????????????????????????????? | | ?????????????????????????????????????????? | | ?????????????????????????????????????????? | | ????????????????????????? ???????????????? | | ????????????????????????? #?????????????? | | ?????????????????? #?????????????? | | ??????????????# """"""""" #?? #?????????? | | ??????????? # ### ??????????? | | ?????????? # # ???????????? | | ???????? """""" """"""#???????????? | | ???????? " ! ; #???????????? | | ??????? " ; #???????????? | | ??????? " ; ##??????????? | | ??????# " k ; #??????????? | | ??????? " ; #??????????? | | ???????? " #???????????? | | ??????? " #??########## | | ??????? " #??# T # | | ??????????????# = ;#???# # | | ??????????????# ;#???# # | | ??????????????# ! ###??# # | | ??????????????# ! *%% ;??## # | | ??????????????####"" "%%;;##;## # | | ?????????????????#######;[ # # | | ??????????????????????###%= %#= # | | ??????????????????????# @ % !*;%= # | | ???????? ???????????## %%+!!k # | | ??????? ???????????# H ![#*= # | | ??????? ?????????? *% = == # | | ??????# ?????????## s% # | | ??????# ?????????## = # | | ??????# ########### # | | ?????## # | | ????? # | | ???? # | | ???? ########## | | ??? #????????? | | ??? #????????? | | ????# #????????? | | ????# ?###########+########+#####????????? | | ????# ??????# # #????????? | | ????# ??????# """" """" #"" #????????? | | ????# ??????# """" """" #"" #????????? | | ????# ??????# """" """" #G #????????? | | ????# ####### """" """" #"" #????????? | | ????# + #"" #????????? | | ????# #### """" """" # #????????? | | ????# #??# """" """" # """"#????????? | | ##### #??# """" """" #! """"#????????? | | """ # #??# """" """" # """"#????????? | +----------------------------------------------------+ Best States ------------- Heat Dissipation 34 Energy Generation 17 Energy Capacity 1300 Matter Stores 800 Matter Capacity 800 Sight Range 22 Terrain Scan Density 10 Armor Coverage 2000 Evasion (%) 40 Melee Accuracy 12 Target Analysis 6 Recoil Reduction 5 Item Schematics ----------------- None Robot Schematics ------------------ None Fabricated ------------ Nothing Repaired ---------- Nothing Studied --------- Imp. Treads | -8/Materials | Hacked Powered Hammer | -7/Factory | Hacked Alien Tech Used ----------------- None Achievements -------------- None Challenges ------------ None Game ------ Seed PartitionAntisysDesublimator Manual? 0 Play Time 00:34:37 Cumulative 293.7 hours Start 2026.07.21 @ 00:59:35 End 2026.07.21 @ 01:47:37 Sessions 1 Manual Loads 0 Difficulty Rogue Special Mode None Game No. 142 Rogue 142 Adventurer 0 Explorer 0 Win Type - Total 18 Types 14/1/1/1/0/0/0/0/0/1 Lore% 79 Gallery% 74 Achievement% 72 Wizard Run 0 Options --------- Layout 0 ASCII 0 Keyboard 1 Movement Arrows Keybinds 0 Fullscreen 2 Font 18/SmallcapsGlow Map View 76x50 Zoom Use 0% Tactical HUD 1 Map Filters NONE Filters NONE Steam 1 RUN: 7baa8033-9d31-4120-897d-21a992971831